[Event "Open NK Rapid 2025 bord 26-50"]
[Site "Helmond, Netherlands"]
[Date "2025.05.03"]
[Round "3.4"]
[White "Sydykov, Bayastan"]
[Black "De Witte, Sjoerd"]
[Result "1-0"]
[TimeControl "15 min +5 sec increment"]
[WhiteFideId "13829610"]
[BlackFideId "1092421"]
[WhiteElo "2297"]
[BlackElo "1789"]

1. e4 {[%clk 00:13:06]} {[%emt 00:02:03]} c5 {[%clk 00:15:08]} {[%emt
00:00:02]} 2. Nf3 {[%clk 00:13:10]} {[%emt 00:00:01]} d6 {[%clk 00:15:11]}
{[%emt 00:00:03]} 3. Bb5+ {[%clk 00:13:11]} {[%emt 00:00:04]} Nd7 {[%clk
00:15:12]} {[%emt 00:00:04]} 4. Ba4 {[%clk 00:13:13]} {[%emt 00:00:03]} Ngf6
{[%clk 00:15:13]} {[%emt 00:00:04]} 5. O-O {[%clk 00:13:16]} {[%emt 00:00:03]}
g6 {[%emt 00:00:08]} 6. Re1 {[%clk 00:12:56]} {[%emt 00:00:22]} Bg7 {[%clk
00:15:12]} {[%emt 00:00:04]} 7. c3 {[%clk 00:12:55]} {[%emt 00:00:07]} O-O
{[%clk 00:15:11]} {[%emt 00:00:05]} 8. d4 {[%clk 00:12:55]} {[%emt 00:00:06]}
cxd4 {[%clk 00:14:45]} {[%emt 00:00:31]} 9. cxd4 {[%clk 00:12:58]} e5 {[%clk
00:14:45]} {[%emt 00:00:06]} 10. Nc3 {[%clk 00:12:56]} {[%emt 00:00:07]} exd4
{[%clk 00:14:16]} {[%emt 00:00:34]} 11. Nxd4 {[%clk 00:12:59]} {[%emt
00:00:02]} Nc5 {[%clk 00:14:03]} {[%emt 00:00:18]} 12. Bc2 {[%clk 00:13:00]}
{[%emt 00:00:04]} Re8 {[%clk 00:13:03]} {[%emt 00:01:04]} 13. Bg5 {[%clk
00:12:44]} {[%emt 00:00:21]} h6 {[%clk 00:12:51]} {[%emt 00:00:18]} 14. Bh4
{[%clk 00:12:46]} {[%emt 00:00:03]} Qb6 {[%clk 00:11:47]} {[%emt 00:01:09]} 15.
Bxf6 {[%clk 00:11:17]} {[%emt 00:01:34]} Bxf6 {[%clk 00:11:48]} {[%emt
00:00:04]} 16. Nd5 {[%clk 00:11:20]} {[%emt 00:00:02]} Qd8 {[%clk 00:11:43]}
{[%emt 00:00:10]} 17. Nb5 {[%clk 00:09:57]} {[%emt 00:01:28]} Ne6 {[%clk
00:09:28]} {[%emt 00:02:20]} 18. Nxd6 {[%clk 00:09:33]} {[%emt 00:00:30]} Bxb2
{[%clk 00:08:47]} {[%emt 00:00:45]} 19. Nxe8 {[%clk 00:09:21]} {[%emt
00:00:17]} Qxe8 {[%clk 00:07:55]} {[%emt 00:00:57]} 20. Rb1 {[%clk 00:09:23]}
{[%emt 00:00:02]} Bg7 {[%clk 00:07:49]} {[%emt 00:00:11]} 21. Ba4 {[%clk
00:09:24]} {[%emt 00:00:04]} Qd8 {[%clk 00:06:36]} {[%emt 00:01:18]} 22. Qc2
{[%clk 00:08:36]} {[%emt 00:00:54]} Qg5 {[%clk 00:05:26]} {[%emt 00:01:15]} 23.
Qc1 {[%clk 00:08:21]} {[%emt 00:00:20]} Qh4 {[%clk 00:03:00]} {[%emt 00:02:31]}
24. Qe3 {[%clk 00:06:41]} {[%emt 00:01:45]} Be5 {[%clk 00:01:37]} {[%emt
00:01:27]} 25. g3 {[%clk 00:06:34]} {[%emt 00:00:12]} Qh3 {[%clk 00:01:28]}
{[%emt 00:00:14]} 26. Ne7+ {[%clk 00:06:07]} {[%emt 00:00:33]} Kh7 {[%clk
00:01:23]} {[%emt 00:00:11]} 27. Nxc8 {[%clk 00:05:56]} {[%emt 00:00:15]} Rxc8
{[%clk 00:01:26]} {[%emt 00:00:02]} 28. Bd7 {[%clk 00:04:53]} {[%emt 00:01:08]}
Rc3 {[%clk 00:01:22]} {[%emt 00:00:09]} 29. Bxe6 {[%clk 00:04:52]} {[%emt
00:00:06]} Rxe3 {[%clk 00:01:23]} {[%emt 00:00:04]} 30. Bxh3 {[%clk 00:04:54]}
{[%emt 00:00:03]} 1-0

[Event "Open NK Rapid 2025 bord 26-50"]
[Site "Helmond, Netherlands"]
[Date "2025.05.03"]
[Round "3.5"]
[White "Vasylchenko, Maksym"]
[Black "Beeke, Bob"]
[Result "0-1"]
[TimeControl "15 min +5 sec increment"]
[WhiteFideId "34150617"]
[BlackFideId "1011634"]
[WhiteElo "1853"]
[BlackElo "2217"]

1. d4 {[%clk 00:15:05]} {[%emt 01:08:40]} d5 {[%clk 00:13:41]} {[%emt
00:01:35]} 2. c4 {[%clk 00:15:12]} {[%emt 00:00:02]} dxc4 {[%clk 00:13:44]}
{[%emt 00:00:02]} 3. Nf3 {[%clk 00:15:14]} {[%emt 00:00:02]} a6 {[%clk
00:13:46]} {[%emt 00:00:03]} 4. e3 {[%clk 00:15:15]} {[%emt 00:00:04]} Nf6
{[%clk 00:13:49]} {[%emt 00:00:02]} 5. Bxc4 {[%clk 00:15:09]} {[%emt 00:00:12]}
e6 {[%clk 00:13:52]} 6. O-O {[%clk 00:15:11]} {[%emt 00:00:03]} b5 {[%clk
00:13:55]} {[%emt 00:00:03]} 7. Bd3 {[%clk 00:15:10]} {[%emt 00:00:06]} Bb7
{[%clk 00:13:58]} {[%emt 00:00:02]} 8. a3 {[%clk 00:15:10]} {[%emt 00:00:05]}
c5 {[%clk 00:13:59]} {[%emt 00:00:03]} 9. dxc5 {[%clk 00:15:14]} {[%emt
00:00:01]} Bxc5 {[%clk 00:14:00]} {[%emt 00:00:04]} 10. Qe2 {[%clk 00:15:12]}
{[%emt 00:00:07]} Nbd7 {[%clk 00:13:14]} {[%emt 00:00:51]} 11. Rd1 {[%clk
00:15:10]} {[%emt 00:00:07]} Qe7 {[%clk 00:13:09]} {[%emt 00:00:10]} 12. b4
{[%clk 00:15:14]} {[%emt 00:00:02]} Bd6 {[%clk 00:12:55]} {[%emt 00:00:19]} 13.
Bb2 {[%clk 00:15:00]} {[%emt 00:00:19]} O-O {[%clk 00:12:53]} {[%emt 00:00:05]}
14. Nbd2 {[%clk 00:15:00]} {[%emt 00:00:06]} Rfc8 {[%clk 00:12:48]} {[%emt
00:00:11]} 15. Rac1 {[%clk 00:14:30]} {[%emt 00:00:35]} Nb6 {[%clk 00:12:51]}
{[%emt 00:00:02]} 16. e4 {[%clk 00:13:19]} {[%emt 00:01:16]} e5 {[%clk
00:12:07]} {[%emt 00:00:49]} 17. Nh4 {[%clk 00:13:11]} {[%emt 00:00:13]} g6
{[%clk 00:12:04]} {[%emt 00:00:08]} 18. Nhf3 {[%clk 00:12:58]} {[%emt
00:00:18]} Na4 {[%clk 00:12:06]} {[%emt 00:00:03]} 19. Ba1 {[%clk 00:12:59]}
{[%emt 00:00:04]} Rc7 {[%clk 00:11:28]} {[%emt 00:00:43]} 20. Qe3 {[%clk
00:11:00]} {[%emt 00:02:04]} Rac8 {[%clk 00:11:25]} {[%emt 00:00:08]} 21. Rxc7
{[%clk 00:10:21]} {[%emt 00:00:43]} Rxc7 {[%clk 00:10:59]} {[%emt 00:00:32]} 22.
Nf1 {[%clk 00:09:38]} {[%emt 00:00:48]} Rd7 {[%clk 00:09:18]} {[%emt 00:01:45]}
23. Ng3 {[%clk 00:08:34]} {[%emt 00:01:09]} Bb8 {[%clk 00:09:12]} {[%emt
00:00:11]} 24. Qg5 {[%clk 00:07:33]} {[%emt 00:01:06]} Nb6 {[%clk 00:06:11]}
{[%emt 00:03:06]} 25. Nxe5 {[%clk 00:05:00]} {[%emt 00:02:38]} Bxe5 {[%clk
00:04:14]} {[%emt 00:02:02]} 26. Bxe5 {[%clk 00:04:55]} {[%emt 00:00:10]} Nxe4
{[%clk 00:04:14]} {[%emt 00:00:05]} 27. Qxe7 {[%clk 00:04:44]} {[%emt
00:00:16]} Rxe7 {[%clk 00:04:18]} {[%emt 00:00:01]} 28. Bxe4 {[%clk 00:04:18]}
{[%emt 00:00:32]} Rxe5 {[%clk 00:03:53]} {[%emt 00:00:30]} 29. Bxb7 {[%clk
00:04:21]} {[%emt 00:00:02]} Nc4 {[%clk 00:03:57]} {[%emt 00:00:01]} 30. Bxa6
{[%clk 00:04:19]} {[%emt 00:00:07]} Nxa3 {[%clk 00:04:00]} {[%emt 00:00:02]} 31.
h3 {[%clk 00:04:04]} {[%emt 00:00:19]} Nc2 {[%clk 00:03:53]} {[%emt 00:00:13]}
32. Rd8+ {[%clk 00:03:26]} {[%emt 00:00:42]} Kg7 {[%clk 00:03:57]} 33. Rb8
{[%clk 00:03:31]} Nxb4 {[%clk 00:03:39]} {[%emt 00:00:23]} 34. Rxb5 {[%clk
00:03:29]} {[%emt 00:00:06]} Re1+ {[%clk 00:03:43]} {[%emt 00:00:01]} 35. Nf1
{[%clk 00:03:15]} {[%emt 00:00:20]} Nxa6 {[%clk 00:03:47]} 36. f3 {[%clk
00:03:11]} {[%emt 00:00:08]} Nc7 {[%clk 00:03:47]} {[%emt 00:00:05]} 37. Rb6
{[%clk 00:03:04]} {[%emt 00:00:12]} Nd5 {[%clk 00:03:50]} {[%emt 00:00:02]} 38.
Rd6 {[%clk 00:03:08]} {[%emt 00:00:02]} Nc3 {[%clk 00:03:33]} {[%emt 00:00:22]}
39. Rd2 {[%clk 00:02:28]} {[%emt 00:00:44]} Ra1 {[%clk 00:03:18]} {[%emt
00:00:20]} 40. Kf2 {[%clk 00:02:19]} {[%emt 00:00:15]} Nd1+ {[%clk 00:03:08]}
{[%emt 00:00:15]} 41. Ke2 {[%clk 00:02:13]} {[%emt 00:00:10]} Nc3+ {[%clk
00:03:11]} {[%emt 00:00:02]} 42. Kf2 {[%clk 00:02:04]} {[%emt 00:00:13]} h5
{[%clk 00:03:03]} {[%emt 00:00:14]} 43. h4 {[%clk 00:01:39]} {[%emt 00:00:30]}
Ra4 {[%clk 00:03:04]} {[%emt 00:00:03]} 44. g3 {[%clk 00:01:43]} {[%emt
00:00:02]} Ra1 {[%clk 00:02:47]} {[%emt 00:00:23]} 45. Ne3 {[%clk 00:01:03]}
{[%emt 00:00:45]} Rc1 {[%clk 00:02:45]} {[%emt 00:00:07]} 46. Nf1 {[%clk
00:00:44]} {[%emt 00:00:23]} Rb1 {[%clk 00:02:37]} {[%emt 00:00:13]} 47. Ne3
{[%clk 00:00:45]} {[%emt 00:00:04]} Ra1 {[%clk 00:02:33]} {[%emt 00:00:09]} 48.
Nf1 {[%clk 00:00:45]} {[%emt 00:00:05]} Ra6 {[%clk 00:02:36]} {[%emt 00:00:02]}
49. Ne3 {[%clk 00:00:43]} {[%emt 00:00:07]} Re6 {[%clk 00:02:31]} {[%emt
00:00:11]} 50. Rd3 {[%clk 00:00:35]} {[%emt 00:00:13]} Nb5 {[%clk 00:02:26]}
{[%emt 00:00:10]} 51. Rb3 {[%clk 00:00:32]} {[%emt 00:00:08]} Nc7 {[%clk
00:02:24]} {[%emt 00:00:06]} 52. Rc3 {[%clk 00:00:29]} {[%emt 00:00:09]} Ne8
{[%clk 00:02:27]} {[%emt 00:00:02]} 53. Nd5 {[%clk 00:00:26]} {[%emt 00:00:08]}
Nd6 {[%clk 00:02:19]} {[%emt 00:00:12]} 54. Nf4 {[%clk 00:00:24]} {[%emt
00:00:07]} Re7 {[%clk 00:02:16]} {[%emt 00:00:08]} 55. Rc6 {[%clk 00:00:25]}
{[%emt 00:00:04]} Nf5 {[%clk 00:02:18]} {[%emt 00:00:04]} 56. Nd5 {[%clk
00:00:17]} {[%emt 00:00:13]} Rd7 {[%clk 00:02:16]} {[%emt 00:00:07]} 57. Rc5
{[%clk 00:00:14]} {[%emt 00:00:08]} Rd6 {[%clk 00:02:19]} 58. Nf4 {[%clk
00:00:07]} {[%emt 00:00:12]} Rd2+ {[%clk 00:02:21]} {[%emt 00:00:03]} 59. Ke3
{[%emt 00:00:08]} 0-1

[Event "Open NK Rapid 2025 bord 26-50"]
[Site "Helmond, Netherlands"]
[Date "2025.05.03"]
[Round "3.6"]
[White "Quintus, Max"]
[Black "Bakels, Anton"]
[Result "0-1"]
[TimeControl "15 min +5 sec increment"]
[WhiteFideId "1091450"]
[BlackFideId "1046187"]
[WhiteElo "1803"]
[BlackElo "2025"]

1. d4 {[%clk 00:15:08]} {[%emt 00:00:01]} Nf6 {[%clk 00:15:09]} {[%emt
00:00:02]} 2. c4 {[%clk 00:15:11]} {[%emt 00:00:02]} g6 {[%clk 00:15:12]}
{[%emt 00:00:02]} 3. Nf3 {[%clk 00:15:03]} {[%emt 00:00:12]} Bg7 {[%clk
00:15:15]} {[%emt 00:00:02]} 4. g3 {[%clk 00:15:03]} {[%emt 00:00:05]} O-O
{[%clk 00:15:17]} {[%emt 00:00:03]} 5. Bg2 {[%clk 00:15:07]} d6 {[%clk
00:15:02]} {[%emt 00:00:21]} 6. O-O {[%clk 00:15:07]} {[%emt 00:00:04]} Nbd7
{[%clk 00:14:20]} {[%emt 00:00:47]} 7. Nc3 {[%clk 00:14:18]} {[%emt 00:00:54]}
c6 {[%clk 00:14:23]} {[%emt 00:00:03]} 8. e4 {[%clk 00:14:13]} {[%emt
00:00:10]} Qc7 {[%clk 00:14:24]} {[%emt 00:00:04]} 9. h3 {[%clk 00:14:00]}
{[%emt 00:00:17]} e5 {[%clk 00:13:59]} {[%emt 00:00:31]} 10. Be3 {[%clk
00:13:41]} {[%emt 00:00:24]} a6 {[%clk 00:11:31]} {[%emt 00:02:34]} 11. a4
{[%clk 00:13:33]} {[%emt 00:00:13]} b6 {[%clk 00:11:19]} {[%emt 00:00:16]} 12.
Qd2 {[%clk 00:11:32]} {[%emt 00:02:06]} Bb7 {[%clk 00:08:24]} {[%emt 00:03:00]}
13. d5 {[%clk 00:09:18]} {[%emt 00:02:18]} Nc5 {[%clk 00:07:43]} {[%emt
00:00:47]} 14. Qc2 {[%clk 00:08:16]} {[%emt 00:01:07]} cxd5 {[%clk 00:07:17]}
{[%emt 00:00:30]} 15. cxd5 {[%clk 00:07:55]} {[%emt 00:00:27]} Ncxe4 {[%clk
00:06:50]} {[%emt 00:00:32]} 16. Bxb6 {[%clk 00:06:37]} {[%emt 00:01:23]} Qxb6
{[%clk 00:06:53]} {[%emt 00:00:02]} 17. Nxe4 {[%clk 00:06:39]} {[%emt
00:00:03]} Nxd5 {[%clk 00:06:22]} {[%emt 00:00:36]} 18. a5 {[%clk 00:05:58]}
{[%emt 00:00:46]} Qd8 {[%clk 00:05:35]} {[%emt 00:00:51]} 19. Rfd1 {[%clk
00:05:22]} {[%emt 00:00:42]} Qe7 {[%clk 00:04:28]} {[%emt 00:01:13]} 20. Ra3
{[%clk 00:04:29]} {[%emt 00:00:57]} Nb4 {[%clk 00:04:00]} {[%emt 00:00:33]} 21.
Qd2 {[%clk 00:03:17]} {[%emt 00:01:17]} d5 {[%clk 00:04:01]} {[%emt 00:00:04]}
22. Nc3 {[%clk 00:03:17]} {[%emt 00:00:05]} d4 {[%clk 00:03:54]} {[%emt
00:00:12]} 23. Na4 {[%clk 00:03:20]} {[%emt 00:00:01]} Rac8 {[%clk 00:03:47]}
{[%emt 00:00:13]} 24. Rb3 {[%clk 00:02:52]} {[%emt 00:00:33]} Nd5 {[%clk
00:03:13]} {[%emt 00:00:38]} 25. Nb6 {[%clk 00:02:45]} {[%emt 00:00:12]} Rc5
{[%clk 00:02:39]} {[%emt 00:00:40]} 26. Rc1 {[%clk 00:02:38]} {[%emt 00:00:12]}
Rd8 {[%clk 00:02:06]} {[%emt 00:00:37]} 27. Rxc5 {[%clk 00:02:34]} {[%emt
00:00:09]} Qxc5 {[%clk 00:02:09]} {[%emt 00:00:02]} 28. Ne1 {[%clk 00:02:15]}
{[%emt 00:00:24]} f5 {[%clk 00:01:55]} {[%emt 00:00:20]} 29. Nd3 {[%clk
00:02:06]} {[%emt 00:00:14]} Qd6 {[%clk 00:01:40]} {[%emt 00:00:19]} 30. Nc4
{[%clk 00:02:01]} {[%emt 00:00:11]} Qe7 {[%clk 00:01:30]} {[%emt 00:00:15]} 31.
Ndxe5 {[%clk 00:01:51]} {[%emt 00:00:15]} Bxe5 {[%clk 00:00:38]} {[%emt
00:00:57]} 32. Nxe5 {[%clk 00:01:54]} {[%emt 00:00:02]} Qxe5 {[%clk 00:00:35]}
{[%emt 00:00:08]} 33. Rxb7 {[%clk 00:01:58]} {[%emt 00:00:01]} Nf6 {[%clk
00:00:23]} {[%emt 00:00:17]} 34. Qh6 {[%clk 00:01:34]} {[%emt 00:00:28]} Rd7
{[%clk 00:00:10]} {[%emt 00:00:19]} 35. Rb8+ {[%clk 00:01:29]} {[%emt
00:00:09]} Ne8 {[%clk 00:00:14]} {[%emt 00:00:02]} 36. Ra8 {[%clk 00:00:32]}
{[%emt 00:01:02]} d3 {[%clk 00:00:14]} {[%emt 00:00:06]} 37. Qd2 {[%clk
00:00:23]} {[%emt 00:00:14]} Kf7 {[%clk 00:00:08]} {[%emt 00:00:10]} 38. Rxa6
{[%emt 00:00:04]} Qe2 {[%clk 00:00:11]} 39. Qf4 {[%clk 00:00:08]} {[%emt
00:00:21]} d2 {[%clk 00:00:10]} {[%emt 00:00:07]} 40. Qc4+ {[%clk 00:00:06]}
{[%emt 00:00:07]} Qxc4 {[%emt 00:00:05]} 0-1

[Event "Open NK Rapid 2025 bord 26-50"]
[Site "Helmond, Netherlands"]
[Date "2025.05.03"]
[Round "3.7"]
[White "Van Baaren, Joris"]
[Black "Vogel, Jaap"]
[Result "0-1"]
[TimeControl "15 min +5 sec increment"]
[WhiteFideId "40108929"]
[BlackFideId "1000764"]
[WhiteElo "1796"]
[BlackElo "2006"]

1. e4 {[%clk 00:15:05]} {[%emt 00:00:05]} e6 {[%clk 00:15:09]} {[%emt
00:00:01]} 2. d4 {[%clk 00:15:08]} {[%emt 00:00:02]} d5 {[%clk 00:15:13]}
{[%emt 00:00:01]} 3. Nd2 {[%clk 00:15:12]} c5 {[%clk 00:15:13]} {[%emt
00:00:05]} 4. Ngf3 {[%clk 00:15:16]} {[%emt 00:00:02]} Nf6 {[%clk 00:15:04]}
{[%emt 00:00:14]} 5. exd5 {[%clk 00:15:01]} {[%emt 00:00:20]} exd5 {[%clk
00:15:05]} {[%emt 00:00:03]} 6. dxc5 {[%clk 00:14:57]} {[%emt 00:00:10]} Bxc5
{[%clk 00:15:09]} {[%emt 00:00:01]} 7. Nb3 {[%clk 00:15:00]} {[%emt 00:00:01]}
Be7 {[%clk 00:14:58]} {[%emt 00:00:16]} 8. c3 {[%clk 00:14:59]} {[%emt
00:00:06]} O-O {[%clk 00:15:01]} {[%emt 00:00:01]} 9. Be2 {[%clk 00:15:02]}
{[%emt 00:00:03]} h6 {[%clk 00:14:51]} {[%emt 00:00:15]} 10. O-O {[%clk
00:15:03]} {[%emt 00:00:03]} Bg4 {[%clk 00:14:52]} {[%emt 00:00:05]} 11. Be3
{[%clk 00:15:05]} {[%emt 00:00:03]} Nbd7 {[%clk 00:14:28]} {[%emt 00:00:29]} 12.
h3 {[%clk 00:14:56]} {[%emt 00:00:14]} Bh5 {[%clk 00:14:32]} 13. Nfd4 {[%clk
00:14:31]} {[%emt 00:00:31]} Bxe2 {[%clk 00:14:32]} {[%emt 00:00:06]} 14. Qxe2
{[%clk 00:14:30]} {[%emt 00:00:06]} Re8 {[%clk 00:14:35]} 15. Rad1 {[%clk
00:14:30]} {[%emt 00:00:05]} a5 {[%clk 00:14:33]} {[%emt 00:00:08]} 16. a4
{[%clk 00:14:26]} {[%emt 00:00:09]} Nb6 {[%clk 00:14:12]} {[%emt 00:00:26]} 17.
Qb5 {[%clk 00:11:52]} {[%emt 00:02:38]} Nc4 {[%clk 00:13:53]} {[%emt 00:00:24]}
18. Bc1 {[%clk 00:11:53]} {[%emt 00:00:04]} Qb6 {[%clk 00:13:49]} {[%emt
00:00:09]} 19. Nd2 {[%clk 00:11:39]} {[%emt 00:00:19]} Rac8 {[%clk 00:11:45]}
{[%emt 00:02:09]} 20. Nxc4 {[%clk 00:11:28]} {[%emt 00:00:16]} Qxb5 {[%clk
00:11:48]} {[%emt 00:00:03]} 21. axb5 {[%clk 00:11:02]} {[%emt 00:00:31]} dxc4
{[%clk 00:11:22]} {[%emt 00:00:30]} 22. Rfe1 {[%clk 00:10:52]} {[%emt
00:00:15]} Bc5 {[%clk 00:11:13]} {[%emt 00:00:14]} 23. Be3 {[%clk 00:10:41]}
{[%emt 00:00:16]} Nd5 {[%clk 00:11:09]} {[%emt 00:00:09]} 24. Ra1 {[%clk
00:10:28]} {[%emt 00:00:18]} Nxe3 {[%clk 00:10:53]} {[%emt 00:00:21]} 25. fxe3
{[%clk 00:10:31]} {[%emt 00:00:01]} Bb6 {[%clk 00:10:42]} {[%emt 00:00:16]} 26.
Kf2 {[%clk 00:10:15]} {[%emt 00:00:21]} Re4 {[%clk 00:09:57]} {[%emt 00:00:51]}
27. Nf5 {[%clk 00:09:27]} {[%emt 00:00:54]} Rf4+ {[%clk 00:09:58]} {[%emt
00:00:04]} 28. Kg3 {[%clk 00:09:21]} {[%emt 00:00:11]} Rxf5 {[%clk 00:10:01]}
29. e4 {[%clk 00:09:21]} {[%emt 00:00:05]} Rg5+ {[%clk 00:09:58]} {[%emt
00:00:08]} 30. Kf3 {[%clk 00:09:23]} {[%emt 00:00:03]} Rd8 {[%clk 00:09:54]}
{[%emt 00:00:10]} 31. Rad1 {[%clk 00:09:22]} {[%emt 00:00:06]} Rxb5 {[%clk
00:09:46]} {[%emt 00:00:12]} 32. Rxd8+ {[%clk 00:08:42]} {[%emt 00:00:45]} Bxd8
{[%clk 00:09:50]} 33. Rd1 {[%clk 00:08:46]} {[%emt 00:00:01]} Bf6 {[%clk
00:09:45]} {[%emt 00:00:10]} 34. Rd2 {[%clk 00:08:42]} {[%emt 00:00:09]} a4
{[%clk 00:09:48]} {[%emt 00:00:03]} 35. Ke2 {[%clk 00:08:30]} {[%emt 00:00:16]}
a3 {[%clk 00:09:37]} {[%emt 00:00:16]} 0-1